[Event "Titled Tuesday Blitz November 22 Early 2022"]
[White "Goncalves, Davi Sulzbacher"]
[Black "Bon, Michael"]
[WhiteFideId "2154510"]
[BlackFideId "620696"]
[WhiteElo "2182"]
[BlackElo "2355"]
[Result "0-1"]
[Round "08"]
[TimeControl "180+1"]
[Date "2022.11.23"]
[WhiteClock "0:00:43"]
[BlackClock "0:00:14"]

1. Nf3 {[%clk 0:03:00]}  Nf6 {[%clk 0:02:59]} 2. e3 {[%clk 0:03:01]}  g6 {[%clk 0:02:56]} 3. b3 {[%clk 0:03:00]}  Bg7 {[%clk 0:02:57]} 4. Bb2 {[%clk 0:03:00]}  d6 {[%clk 0:02:52]} 5. c4 {[%clk 0:03:00]}  e5 {[%clk 0:02:51]} 6. d4 {[%clk 0:03:00]}  Nc6 {[%clk 0:02:12]} 7. Be2 {[%clk 0:02:50]}  O-O {[%clk 0:02:09]} 8. O-O {[%clk 0:02:51]}  Qe7 {[%clk 0:01:58]} 9. Nc3 {[%clk 0:02:48]}  a6 {[%clk 0:01:52]} 10. Nd5 {[%clk 0:02:45]}  Nxd5 {[%clk 0:01:48]} 11. cxd5 {[%clk 0:02:46]}  Nd8 {[%clk 0:01:46]} 12. dxe5 {[%clk 0:02:43]}  dxe5 {[%clk 0:01:44]} 13. a4 {[%clk 0:02:43]}  Bg4 {[%clk 0:01:40]} 14. Ba3 {[%clk 0:02:42]}  Qd7 {[%clk 0:01:37]} 15. Bxf8 {[%clk 0:02:42]}  Kxf8 {[%clk 0:01:38]} 16. Nxe5 {[%clk 0:02:40]}  Bxe5 {[%clk 0:01:33]} 17. Bxg4 {[%clk 0:02:40]}  f5 {[%clk 0:01:33]} 18. Bf3 {[%clk 0:02:39]}  Nf7 {[%clk 0:01:33]} 19. Rc1 {[%clk 0:02:37]}  Rd8 {[%clk 0:01:33]} 20. Qc2 {[%clk 0:02:37]}  Bd6 {[%clk 0:01:25]} 21. Qc3 {[%clk 0:02:31]}  Kg8 {[%clk 0:01:23]} 22. e4 {[%clk 0:02:29]}  f4 {[%clk 0:01:21]} 23. h3 {[%clk 0:02:11]}  Ne5 {[%clk 0:01:20]} 24. Bg4 {[%clk 0:02:11]}  Nxg4 {[%clk 0:00:45]} 25. hxg4 {[%clk 0:02:12]}  Qxg4 {[%clk 0:00:45]} 26. e5 {[%clk 0:02:11]}  f3 {[%clk 0:00:45]} 27. Qxf3 {[%clk 0:02:10]}  Qxf3 {[%clk 0:00:45]} 28. gxf3 {[%clk 0:02:11]}  Bxe5 {[%clk 0:00:46]} 29. Rfe1 {[%clk 0:02:12]}  Bd6 {[%clk 0:00:45]} 30. Kg2 {[%clk 0:02:07]}  Rf8 {[%clk 0:00:46]} 31. Re6 {[%clk 0:02:06]}  Rf4 {[%clk 0:00:44]} 32. Rc4 {[%clk 0:02:02]}  Rf5 {[%clk 0:00:41]} 33. Rd4 {[%clk 0:01:53]}  a5 {[%clk 0:00:39]} 34. Re8+ {[%clk 0:01:53]}  Kf7 {[%clk 0:00:39]} 35. Rh8 {[%clk 0:01:51]}  Kg7 {[%clk 0:00:38]} 36. Rd8 {[%clk 0:01:49]}  b6 {[%clk 0:00:30]} 37. Rd3 {[%clk 0:01:49]}  h5 {[%clk 0:00:24]} 38. Re8 {[%clk 0:01:45]}  Kf7 {[%clk 0:00:24]} 39. Re4 {[%clk 0:01:44]}  Kf6 {[%clk 0:00:23]} 40. Kf1 {[%clk 0:01:40]}  Kf7 {[%clk 0:00:21]} 41. Ke2 {[%clk 0:01:41]}  Kf6 {[%clk 0:00:21]} 42. Kd2 {[%clk 0:01:40]}  Kf7 {[%clk 0:00:22]} 43. Kc3 {[%clk 0:01:40]}  Kf6 {[%clk 0:00:20]} 44. Kc4 {[%clk 0:01:40]}  g5 {[%clk 0:00:20]} 45. Re6+ {[%clk 0:01:32]}  Kg7 {[%clk 0:00:19]} 46. Kd4 {[%clk 0:01:23]}  h4 {[%clk 0:00:15]} 47. Ke4 {[%clk 0:01:21]}  Rf4+ {[%clk 0:00:13]} 48. Ke3 {[%clk 0:01:21]}  h3 {[%clk 0:00:11]} 49. Rd1 {[%clk 0:01:18]}  h2 {[%clk 0:00:11]} 50. Rh1 {[%clk 0:01:18]}  Rb4 {[%clk 0:00:11]} 51. f4 {[%clk 0:01:15]}  Bxf4+ {[%clk 0:00:10]} 52. Kf3 {[%clk 0:01:15]}  Rxb3+ {[%clk 0:00:10]} 53. Kg4 {[%clk 0:01:15]}  Rb4 {[%clk 0:00:09]} 54. Kf5 {[%clk 0:01:10]}  Kf7 {[%clk 0:00:08]} 55. Rh6 {[%clk 0:01:07]}  Rxa4 {[%clk 0:00:07]} 56. Rh7+ {[%clk 0:01:07]}  Kf8 {[%clk 0:00:05]} 57. Kf6 {[%clk 0:01:05]}  Ke8 {[%clk 0:00:04]} 58. Re7+ {[%clk 0:00:58]}  Kd8 {[%clk 0:00:03]} 59. Ree1 {[%clk 0:00:46]}  Kc8 {[%clk 0:00:03]} 60. Ke6 {[%clk 0:00:45]}  Kb7 {[%clk 0:00:03]} 61. Rd1 {[%clk 0:00:42]}  Bd6 {[%clk 0:00:04]} 62. Kf5 {[%clk 0:00:41]}  Rf4+ {[%clk 0:00:04]} 63. Kxg5 {[%clk 0:00:41]}  Rxf2 {[%clk 0:00:05]} 64. Kg4 {[%clk 0:00:41]}  a4 {[%clk 0:00:05]} 65. Ra1 {[%clk 0:00:39]}  a3 {[%clk 0:00:06]} 66. Kh3 {[%clk 0:00:37]}  a2 {[%clk 0:00:05]} 67. Rhf1 {[%clk 0:00:35]}  Rd2 {[%clk 0:00:06]} 68. Rfd1 {[%clk 0:00:34]}  Rxd1 {[%clk 0:00:06]} 69. Rxd1 {[%clk 0:00:34]}  Be5 {[%clk 0:00:05]} 70. Kg2 {[%clk 0:00:30]}  a1=Q {[%clk 0:00:06]} 71. Rxa1 {[%clk 0:00:30]}  Bxa1 {[%clk 0:00:07]} 72. Kxh2 {[%clk 0:00:30]}  Be5+ {[%clk 0:00:08]} 73. Kg2 {[%clk 0:00:31]}  Bd6 {[%clk 0:00:09]} 74. Kf3 {[%clk 0:00:31]}  Ka6 {[%clk 0:00:10]} 75. Ke4 {[%clk 0:00:32]}  Ka5 {[%clk 0:00:11]} 76. Kd3 {[%clk 0:00:32]}  Ka4 {[%clk 0:00:11]} 77. Kc3 {[%clk 0:00:33]}  Ka3 {[%clk 0:00:12]} 78. Kc2 {[%clk 0:00:33]}  b5 {[%clk 0:00:13]} 79. Kc3 {[%clk 0:00:34]}  b4+ {[%clk 0:00:14]} 80. Kc2 {[%clk 0:00:34]}  Ka2 {[%clk 0:00:14]} 81. Kc1 {[%clk 0:00:34]}  b3 {[%clk 0:00:15]} 82. Kd2 {[%clk 0:00:34]}  b2 {[%clk 0:00:16]} 83. Kc3 {[%clk 0:00:35]}  b1=Q {[%clk 0:00:16]} 84. Kc4 {[%clk 0:00:36]}  Qb3+ {[%clk 0:00:16]} 85. Kd4 {[%clk 0:00:36]}  Ka3 {[%clk 0:00:16]} 86. Ke4 {[%clk 0:00:37]}  Kb4 {[%clk 0:00:16]} 87. Kf5 {[%clk 0:00:38]}  Kc5 {[%clk 0:00:16]} 88. Ke6 {[%clk 0:00:39]}  Qxd5+ {[%clk 0:00:17]} 89. Kd7 {[%clk 0:00:40]}  Kd4 {[%clk 0:00:17]} 90. Kc8 {[%clk 0:00:41]}  c5 {[%clk 0:00:17]} 91. Kd7 {[%clk 0:00:41]}  c4 {[%clk 0:00:18]} 92. Kd8 {[%clk 0:00:41]}  c3 {[%clk 0:00:19]} 93. Kd7 {[%clk 0:00:41]}  c2 {[%clk 0:00:20]} 94. Ke8 {[%clk 0:00:41]}  c1=Q {[%clk 0:00:17]} 95. Kd8 {[%clk 0:00:42]}  Qc7+ {[%clk 0:00:16]} 96. Ke8 {[%clk 0:00:43]}  Qg8# {[%clk 0:00:14]} 0-1


[Site "https://www.chess.com"]

[Event "Titled Tuesday Blitz November 22 Early 2022"]
[White "Goriatchkin, Jouri"]
[Black "Avazkhonov, Alikhon"]
[WhiteFideId "4120183"]
[BlackFideId "14208504"]
[WhiteElo "1929"]
[BlackElo "1739"]
[Result "0-1"]
[Round "08"]
[TimeControl "180+1"]
[Date "2022.11.23"]
[WhiteClock "0:00:04"]
[BlackClock "0:00:17"]

1. d4 {[%clk 0:03:00]}  Nf6 {[%clk 0:02:58]} 2. Bg5 {[%clk 0:02:59]}  Ne4 {[%clk 0:02:58]} 3. Bf4 {[%clk 0:02:59]}  c5 {[%clk 0:02:57]} 4. f3 {[%clk 0:02:59]}  Qa5+ {[%clk 0:02:55]} 5. c3 {[%clk 0:03:00]}  Nf6 {[%clk 0:02:56]} 6. Nd2 {[%clk 0:03:00]}  Nc6 {[%clk 0:02:53]} 7. d5 {[%clk 0:02:37]}  Nd8 {[%clk 0:02:33]} 8. Nc4 {[%clk 0:02:17]}  Qa6 {[%clk 0:02:04]} 9. e4 {[%clk 0:02:10]}  b5 {[%clk 0:02:04]} 10. Na3 {[%clk 0:02:10]}  c4 {[%clk 0:02:04]} 11. Ne2 {[%clk 0:01:47]}  e6 {[%clk 0:02:04]} 12. d6 {[%clk 0:01:34]}  Nb7 {[%clk 0:01:47]} 13. Nd4 {[%clk 0:01:27]}  Nxd6 {[%clk 0:01:16]} 14. Bxd6 {[%clk 0:01:11]}  Qxd6 {[%clk 0:01:11]} 15. Naxb5 {[%clk 0:01:08]}  Qc5 {[%clk 0:01:10]} 16. Qa4 {[%clk 0:00:50]}  Be7 {[%clk 0:00:45]} 17. Qxc4 {[%clk 0:00:47]}  O-O {[%clk 0:00:41]} 18. Qxc5 {[%clk 0:00:42]}  Bxc5 {[%clk 0:00:42]} 19. Be2 {[%clk 0:00:41]}  a6 {[%clk 0:00:38]} 20. Nb3 {[%clk 0:00:29]}  Be3 {[%clk 0:00:33]} 21. N5d4 {[%clk 0:00:29]}  d6 {[%clk 0:00:31]} 22. Nc2 {[%clk 0:00:27]}  Bb6 {[%clk 0:00:29]} 23. O-O-O {[%clk 0:00:27]}  Rd8 {[%clk 0:00:21]} 24. Ncd4 {[%clk 0:00:24]}  Bb7 {[%clk 0:00:21]} 25. Bd3 {[%clk 0:00:20]}  a5 {[%clk 0:00:21]} 26. Bc2 {[%clk 0:00:21]}  a4 {[%clk 0:00:21]} 27. Nd2 {[%clk 0:00:20]}  a3 {[%clk 0:00:21]} 28. b3 {[%clk 0:00:20]}  d5 {[%clk 0:00:20]} 29. e5 {[%clk 0:00:19]}  Nd7 {[%clk 0:00:20]} 30. f4 {[%clk 0:00:18]}  Rac8 {[%clk 0:00:20]} 31. N2f3 {[%clk 0:00:16]}  Rxc3 {[%clk 0:00:20]} 32. Rd3 {[%clk 0:00:16]}  Rxd3 {[%clk 0:00:19]} 33. Bxd3 {[%clk 0:00:16]}  Rc8+ {[%clk 0:00:20]} 34. Kb1 {[%clk 0:00:16]}  Nc5 {[%clk 0:00:21]} 35. Be2 {[%clk 0:00:14]}  Ne4 {[%clk 0:00:21]} 36. Ka1 {[%clk 0:00:11]}  Nc3 {[%clk 0:00:18]} 37. Bd3 {[%clk 0:00:11]}  Ne4 {[%clk 0:00:16]} 38. Bxe4 {[%clk 0:00:10]}  dxe4 {[%clk 0:00:17]} 39. Nb5 {[%clk 0:00:08]}  exf3 {[%clk 0:00:17]} 40. gxf3 {[%clk 0:00:05]}  Ba6 {[%clk 0:00:16]} 41. Nd6 {[%clk 0:00:04]}  Bd4+ {[%clk 0:00:16]} 42. Kb1 {[%clk 0:00:04]}  Bd3# {[%clk 0:00:17]} 0-1


[Site "https://www.chess.com"]

[Event "Titled Tuesday Blitz November 22 Early 2022"]
[White "Grandelius, Nils"]
[Black "Jones, Gawain C B"]
[WhiteFideId "1710400"]
[BlackFideId "409561"]
[WhiteElo "2617"]
[BlackElo "2657"]
[Result "1/2-1/2"]
[Round "08"]
[TimeControl "180+1"]
[Date "2022.11.22"]
[WhiteClock "0:00:07"]
[BlackClock "0:00:04"]

1. Nf3 {[%clk 0:03:00]}  Nf6 {[%clk 0:02:55]} 2. d4 {[%clk 0:02:58]}  g6 {[%clk 0:02:54]} 3. Nbd2 {[%clk 0:02:55]}  d5 {[%clk 0:02:53]} 4. c4 {[%clk 0:02:51]}  dxc4 {[%clk 0:02:43]} 5. Nxc4 {[%clk 0:02:49]}  Bg7 {[%clk 0:02:43]} 6. g3 {[%clk 0:02:47]}  O-O {[%clk 0:02:33]} 7. Bg2 {[%clk 0:02:47]}  Nc6 {[%clk 0:02:32]} 8. O-O {[%clk 0:02:46]}  Be6 {[%clk 0:02:32]} 9. b3 {[%clk 0:02:46]}  Ne4 {[%clk 0:02:09]} 10. Bb2 {[%clk 0:02:41]}  Nb4 {[%clk 0:02:04]} 11. Nfe5 {[%clk 0:02:33]}  Bd5 {[%clk 0:01:48]} 12. a3 {[%clk 0:02:12]}  Nc6 {[%clk 0:01:47]} 13. Qc2 {[%clk 0:01:54]}  f5 {[%clk 0:01:42]} 14. Rad1 {[%clk 0:01:46]}  Nf6 {[%clk 0:01:15]} 15. Nxc6 {[%clk 0:01:20]}  bxc6 {[%clk 0:01:14]} 16. Ne5 {[%clk 0:01:20]}  Bxg2 {[%clk 0:01:14]} 17. Kxg2 {[%clk 0:01:21]}  Qd5+ {[%clk 0:01:04]} 18. Kg1 {[%clk 0:01:20]}  Kh8 {[%clk 0:00:54]} 19. Nxc6 {[%clk 0:01:08]}  f4 {[%clk 0:00:54]} 20. Ne5 {[%clk 0:01:00]}  Qe6 {[%clk 0:00:50]} 21. b4 {[%clk 0:00:46]}  Nh5 {[%clk 0:00:31]} 22. Qc6 {[%clk 0:00:42]}  Qb3 {[%clk 0:00:24]} 23. Qc3 {[%clk 0:00:27]}  Qe6 {[%clk 0:00:24]} 24. d5 {[%clk 0:00:23]}  Qd6 {[%clk 0:00:17]} 25. g4 {[%clk 0:00:14]}  Nf6 {[%clk 0:00:13]} 26. Qc6 {[%clk 0:00:14]}  Nxg4 {[%clk 0:00:07]} 27. Qxd6 {[%clk 0:00:06]}  exd6 {[%clk 0:00:06]} 28. Nxg4 {[%clk 0:00:06]}  Bxb2 {[%clk 0:00:06]} 29. Rd3 {[%clk 0:00:07]}  a5 {[%clk 0:00:06]} 30. h3 {[%clk 0:00:05]}  Rfb8 {[%clk 0:00:04]} 31. Rb3 {[%clk 0:00:03]}  Bg7 {[%clk 0:00:03]} 32. Rc1 {[%clk 0:00:04]}  axb4 {[%clk 0:00:03]} 33. Rxb4 {[%clk 0:00:05]}  Rxb4 {[%clk 0:00:03]} 34. axb4 {[%clk 0:00:06]}  Ra7 {[%clk 0:00:03]} 35. Rc4 {[%clk 0:00:06]}  Rb7 {[%clk 0:00:03]} 36. Rxf4 {[%clk 0:00:06]}  Kg8 {[%clk 0:00:03]} 37. Re4 {[%clk 0:00:06]}  Kf7 {[%clk 0:00:03]} 38. Ne3 {[%clk 0:00:06]}  Bh6 {[%clk 0:00:01]} 39. Kg2 {[%clk 0:00:07]}  Bxe3 {[%clk 0:00:01]} 40. fxe3 {[%clk 0:00:08]}  Rb5 {[%clk 0:00:02]} 41. Rd4 {[%clk 0:00:08]}  Kf6 {[%clk 0:00:02]} 42. Kf3 {[%clk 0:00:08]}  Ke5 {[%clk 0:00:03]} 43. Rc4 {[%clk 0:00:08]}  Kxd5 {[%clk 0:00:02]} 44. Rxc7 {[%clk 0:00:08]}  Rxb4 {[%clk 0:00:02]} 45. Rxh7 {[%clk 0:00:09]}  Ke5 {[%clk 0:00:02]} 46. Rg7 {[%clk 0:00:08]}  Kf6 {[%clk 0:00:03]} 47. Rd7 {[%clk 0:00:09]}  Ke6 {[%clk 0:00:03]} 48. Rd8 {[%clk 0:00:09]}  Rh4 {[%clk 0:00:03]} 49. Kg3 {[%clk 0:00:10]}  Ra4 {[%clk 0:00:02]} 50. Re8+ {[%clk 0:00:10]}  Kf7 {[%clk 0:00:03]} 51. Rd8 {[%clk 0:00:10]}  Ke7 {[%clk 0:00:03]} 52. Rb8 {[%clk 0:00:10]}  Ke6 {[%clk 0:00:04]} 53. Rb5 {[%clk 0:00:10]}  Ra3 {[%clk 0:00:03]} 54. Kf3 {[%clk 0:00:11]}  Ra4 {[%clk 0:00:04]} 55. Rg5 {[%clk 0:00:11]}  Kf6 {[%clk 0:00:04]} 56. Rg4 {[%clk 0:00:11]}  Ra1 {[%clk 0:00:04]} 57. Rd4 {[%clk 0:00:12]}  Ke5 {[%clk 0:00:04]} 58. h4 {[%clk 0:00:12]}  Rf1+ {[%clk 0:00:04]} 59. Kg2 {[%clk 0:00:13]}  Re1 {[%clk 0:00:04]} 60. Kf2 {[%clk 0:00:13]}  Rh1 {[%clk 0:00:04]} 61. Rg4 {[%clk 0:00:14]}  Kf5 {[%clk 0:00:04]} 62. Rg5+ {[%clk 0:00:14]}  Kf6 {[%clk 0:00:05]} 63. Rg4 {[%clk 0:00:14]}  Rh2+ {[%clk 0:00:05]} 64. Kf3 {[%clk 0:00:14]}  Kf5 {[%clk 0:00:05]} 65. Rg5+ {[%clk 0:00:08]}  Kf6 {[%clk 0:00:06]} 66. Rg4 {[%clk 0:00:07]}  Kf5 {[%clk 0:00:06]} 67. e4+ {[%clk 0:00:08]}  Kf6 {[%clk 0:00:06]} 68. Ke3 {[%clk 0:00:08]}  Kf7 {[%clk 0:00:05]} 69. Kd4 {[%clk 0:00:08]}  Rxe2 {[%clk 0:00:05]} 70. Rf4+ {[%clk 0:00:08]}  Ke6 {[%clk 0:00:04]} 71. Rg4 {[%clk 0:00:07]} 1/2-1/2


[Site "https://www.chess.com"]

[Event "Titled Tuesday Blitz November 22 Early 2022"]
[White "Hartikainen, Jarmo"]
[Black "Vifleemskaia, Svetlana"]
[WhiteFideId "503134"]
[BlackFideId "4129490"]
[WhiteElo "2198"]
[BlackElo "1929"]
[Result "1-0"]
[Round "08"]
[TimeControl "180+1"]
[Date "2022.11.23"]
[WhiteClock "0:00:19"]
[BlackClock "0:00:02"]

1. e4 {[%clk 0:03:00]}  e5 {[%clk 0:02:59]} 2. Nf3 {[%clk 0:03:00]}  Nc6 {[%clk 0:02:59]} 3. Bc4 {[%clk 0:03:00]}  Nf6 {[%clk 0:02:58]} 4. Ng5 {[%clk 0:02:59]}  d5 {[%clk 0:02:57]} 5. exd5 {[%clk 0:02:59]}  Na5 {[%clk 0:02:57]} 6. Bb5+ {[%clk 0:02:58]}  c6 {[%clk 0:02:58]} 7. dxc6 {[%clk 0:02:59]}  bxc6 {[%clk 0:02:59]} 8. Bd3 {[%clk 0:02:58]}  Ng4 {[%clk 0:02:57]} 9. Nf3 {[%clk 0:02:32]}  Bc5 {[%clk 0:02:50]} 10. O-O {[%clk 0:02:30]}  f5 {[%clk 0:02:06]} 11. Qe2 {[%clk 0:02:05]}  e4 {[%clk 0:01:58]} 12. Bc4 {[%clk 0:02:00]}  Nxc4 {[%clk 0:01:56]} 13. Qxc4 {[%clk 0:01:59]}  Qe7 {[%clk 0:01:40]} 14. d4 {[%clk 0:01:52]}  exf3 {[%clk 0:01:30]} 15. Qxc5 {[%clk 0:01:45]}  fxg2 {[%clk 0:01:24]} 16. Qxe7+ {[%clk 0:01:41]}  Kxe7 {[%clk 0:01:25]} 17. Kxg2 {[%clk 0:01:41]}  Ba6 {[%clk 0:01:17]} 18. Re1+ {[%clk 0:01:39]}  Kf7 {[%clk 0:01:17]} 19. Bd2 {[%clk 0:01:11]}  Rad8 {[%clk 0:01:05]} 20. Bc3 {[%clk 0:01:05]}  Nf6 {[%clk 0:00:59]} 21. Nd2 {[%clk 0:01:03]}  Nd5 {[%clk 0:00:58]} 22. Re5 {[%clk 0:01:00]}  g6 {[%clk 0:00:51]} 23. Rae1 {[%clk 0:00:59]}  Rhe8 {[%clk 0:00:47]} 24. Nf3 {[%clk 0:00:59]}  Nxc3 {[%clk 0:00:36]} 25. Ng5+ {[%clk 0:00:51]}  Kf6 {[%clk 0:00:20]} 26. Rxe8 {[%clk 0:00:49]}  Rxe8 {[%clk 0:00:14]} 27. Rxe8 {[%clk 0:00:48]}  Nxa2 {[%clk 0:00:10]} 28. Nxh7+ {[%clk 0:00:44]}  Kg7 {[%clk 0:00:08]} 29. Ng5 {[%clk 0:00:42]}  Kf6 {[%clk 0:00:08]} 30. Nf3 {[%clk 0:00:40]}  Nb4 {[%clk 0:00:06]} 31. c3 {[%clk 0:00:36]}  Nd3 {[%clk 0:00:06]} 32. Ra8 {[%clk 0:00:31]}  Nxb2 {[%clk 0:00:05]} 33. Rxa7 {[%clk 0:00:31]}  Bb5 {[%clk 0:00:05]} 34. Ne5 {[%clk 0:00:28]}  Nd1 {[%clk 0:00:03]} 35. Rf7+ {[%clk 0:00:21]}  Ke6 {[%clk 0:00:03]} 36. Rf8 {[%clk 0:00:19]}  Nxc3 {[%clk 0:00:02]} 37. Nxg6 {[%clk 0:00:19]} 1-0


[Site "https://www.chess.com"]

[Event "Titled Tuesday Blitz November 22 Early 2022"]
[White "Heinemann, Josefine"]
[Black "Savic, Miroslav"]
[WhiteFideId "12900460"]
[BlackFideId "14508494"]
[WhiteElo "2300"]
[BlackElo "2209"]
[Result "1-0"]
[Round "08"]
[TimeControl "180+1"]
[Date "2022.11.23"]
[WhiteClock "0:00:59"]
[BlackClock "0:00:08"]

1. Nf3 {[%clk 0:03:00]}  Nf6 {[%clk 0:02:53]} 2. g3 {[%clk 0:03:00]}  c6 {[%clk 0:02:51]} 3. Bg2 {[%clk 0:02:58]}  d5 {[%clk 0:02:52]} 4. O-O {[%clk 0:02:58]}  g6 {[%clk 0:02:51]} 5. d3 {[%clk 0:02:58]}  Bg7 {[%clk 0:02:51]} 6. c4 {[%clk 0:02:58]}  O-O {[%clk 0:02:50]} 7. Nc3 {[%clk 0:02:57]}  a6 {[%clk 0:02:51]} 8. cxd5 {[%clk 0:02:57]}  cxd5 {[%clk 0:02:44]} 9. Bf4 {[%clk 0:02:54]}  d4 {[%clk 0:02:41]} 10. Na4 {[%clk 0:02:49]}  Nc6 {[%clk 0:02:33]} 11. Rc1 {[%clk 0:02:46]}  Nd5 {[%clk 0:02:23]} 12. Bd2 {[%clk 0:02:44]}  e5 {[%clk 0:02:22]} 13. Nc5 {[%clk 0:02:34]}  h6 {[%clk 0:02:13]} 14. Qb3 {[%clk 0:02:33]}  Nce7 {[%clk 0:01:47]} 15. Nxb7 {[%clk 0:02:09]}  Bxb7 {[%clk 0:01:44]} 16. Qxb7 {[%clk 0:02:10]}  Rb8 {[%clk 0:01:44]} 17. Qxa6 {[%clk 0:02:09]}  Rxb2 {[%clk 0:01:44]} 18. a4 {[%clk 0:02:00]}  Qa8 {[%clk 0:01:40]} 19. Qxa8 {[%clk 0:01:56]}  Rxa8 {[%clk 0:01:38]} 20. a5 {[%clk 0:01:56]}  Nc3 {[%clk 0:01:25]} 21. Rfe1 {[%clk 0:01:41]}  Rxa5 {[%clk 0:01:21]} 22. Rxc3 {[%clk 0:01:37]}  dxc3 {[%clk 0:01:06]} 23. Bxc3 {[%clk 0:01:35]}  Raa2 {[%clk 0:01:06]} 24. Bxb2 {[%clk 0:01:35]}  Rxb2 {[%clk 0:01:06]} 25. Kf1 {[%clk 0:01:29]}  Nf5 {[%clk 0:00:59]} 26. h4 {[%clk 0:01:26]}  Nd4 {[%clk 0:00:46]} 27. Nxd4 {[%clk 0:01:24]}  exd4 {[%clk 0:00:46]} 28. Rc1 {[%clk 0:01:24]}  Rb8 {[%clk 0:00:39]} 29. Bf3 {[%clk 0:01:16]}  Rd8 {[%clk 0:00:35]} 30. Rc7 {[%clk 0:01:15]}  Kf8 {[%clk 0:00:33]} 31. Bc6 {[%clk 0:01:10]}  Be5 {[%clk 0:00:31]} 32. Rb7 {[%clk 0:01:07]}  Rb8 {[%clk 0:00:23]} 33. Ra7 {[%clk 0:01:04]}  Kg7 {[%clk 0:00:14]} 34. Bd5 {[%clk 0:01:02]}  Rf8 {[%clk 0:00:12]} 35. Kg2 {[%clk 0:01:02]}  g5 {[%clk 0:00:08]} 36. h5 {[%clk 0:01:01]}  Kf6 {[%clk 0:00:08]} 37. Kf3 {[%clk 0:00:59]} 1-0


[Site "https://www.chess.com"]

[Event "Titled Tuesday Blitz November 22 Early 2022"]
[White "Ibadov, Dashgyn"]
[Black "Goryachkina, Aleksandra"]
[WhiteFideId "24107514"]
[BlackFideId "4147103"]
[WhiteElo "2208"]
[BlackElo "2484"]
[Result "0-1"]
[Round "08"]
[TimeControl "180+1"]
[Date "2022.11.23"]
[WhiteClock "0:00:03"]
[BlackClock "0:00:14"]

1. e4 {[%clk 0:03:00]}  e6 {[%clk 0:02:59]} 2. d4 {[%clk 0:03:00]}  d5 {[%clk 0:03:00]} 3. Nc3 {[%clk 0:02:57]}  Bb4 {[%clk 0:02:59]} 4. e5 {[%clk 0:02:58]}  Ne7 {[%clk 0:02:58]} 5. a3 {[%clk 0:02:57]}  Bxc3+ {[%clk 0:02:58]} 6. bxc3 {[%clk 0:02:58]}  c5 {[%clk 0:02:58]} 7. h4 {[%clk 0:02:55]}  Qc7 {[%clk 0:02:58]} 8. h5 {[%clk 0:02:54]}  h6 {[%clk 0:02:58]} 9. Rb1 {[%clk 0:02:17]}  b6 {[%clk 0:02:53]} 10. Qg4 {[%clk 0:02:15]}  cxd4 {[%clk 0:02:44]} 11. Qxg7 {[%clk 0:02:06]}  Rg8 {[%clk 0:02:43]} 12. Qxh6 {[%clk 0:02:06]}  Qxe5+ {[%clk 0:02:40]} 13. Ne2 {[%clk 0:02:02]}  dxc3 {[%clk 0:02:24]} 14. Bf4 {[%clk 0:01:47]}  Qe4 {[%clk 0:02:10]} 15. f3 {[%clk 0:01:37]}  Qxc2 {[%clk 0:02:06]} 16. Rc1 {[%clk 0:01:38]}  Qb2 {[%clk 0:01:58]} 17. Rxc3 {[%clk 0:01:33]}  Nbc6 {[%clk 0:01:49]} 18. Qf6 {[%clk 0:01:09]}  d4 {[%clk 0:01:37]} 19. Rxc6 {[%clk 0:00:53]}  Nxc6 {[%clk 0:01:35]} 20. h6 {[%clk 0:00:51]}  Qb1+ {[%clk 0:01:10]} 21. Kf2 {[%clk 0:00:48]}  Qh7 {[%clk 0:01:08]} 22. Nxd4 {[%clk 0:00:42]}  Rg6 {[%clk 0:01:03]} 23. Qh4 {[%clk 0:00:21]}  Nxd4 {[%clk 0:01:02]} 24. Bc7 {[%clk 0:00:14]}  Nc6 {[%clk 0:00:45]} 25. Bd3 {[%clk 0:00:14]}  Bd7 {[%clk 0:00:28]} 26. Be4 {[%clk 0:00:12]}  Rc8 {[%clk 0:00:25]} 27. Bd6 {[%clk 0:00:11]}  f5 {[%clk 0:00:22]} 28. Bxf5 {[%clk 0:00:02]}  exf5 {[%clk 0:00:19]} 29. Re1+ {[%clk 0:00:03]}  Be6 {[%clk 0:00:14]} 0-1


[Site "https://www.chess.com"]

[Event "Titled Tuesday Blitz November 22 Early 2022"]
[White "Indjic, Aleksandar"]
[Black "Movahed, Sina"]
[WhiteFideId "911925"]
[BlackFideId "42520835"]
[WhiteElo "2592"]
[BlackElo "2225"]
[Result "1-0"]
[Round "08"]
[TimeControl "180+1"]
[Date "2022.11.22"]
[WhiteClock "0:00:10"]
[BlackClock "0:00:06"]

1. e4 {[%clk 0:02:54]}  c5 {[%clk 0:02:59]} 2. Nf3 {[%clk 0:02:52]}  d6 {[%clk 0:02:59]} 3. d4 {[%clk 0:02:52]}  cxd4 {[%clk 0:02:59]} 4. Nxd4 {[%clk 0:02:52]}  Nf6 {[%clk 0:03:00]} 5. Nc3 {[%clk 0:02:52]}  g6 {[%clk 0:03:00]} 6. Be3 {[%clk 0:02:43]}  a6 {[%clk 0:03:00]} 7. h3 {[%clk 0:02:43]}  b5 {[%clk 0:02:54]} 8. a4 {[%clk 0:02:31]}  b4 {[%clk 0:02:52]} 9. Nd5 {[%clk 0:02:31]}  Nxd5 {[%clk 0:02:41]} 10. exd5 {[%clk 0:02:32]}  Bb7 {[%clk 0:02:39]} 11. Bc4 {[%clk 0:02:27]}  Bg7 {[%clk 0:02:30]} 12. Qd2 {[%clk 0:02:25]}  Nd7 {[%clk 0:02:20]} 13. Qxb4 {[%clk 0:02:20]}  Rb8 {[%clk 0:02:21]} 14. Qd2 {[%clk 0:02:17]}  O-O {[%clk 0:02:19]} 15. a5 {[%clk 0:01:12]}  Qc7 {[%clk 0:02:17]} 16. Ba2 {[%clk 0:01:08]}  Ne5 {[%clk 0:02:08]} 17. c4 {[%clk 0:00:58]}  Rfc8 {[%clk 0:01:42]} 18. b3 {[%clk 0:00:55]}  Qd8 {[%clk 0:01:30]} 19. O-O {[%clk 0:00:54]}  Nd7 {[%clk 0:01:23]} 20. Rac1 {[%clk 0:00:53]}  Nc5 {[%clk 0:01:22]} 21. b4 {[%clk 0:00:52]}  Ne4 {[%clk 0:01:21]} 22. Qd3 {[%clk 0:00:52]}  Nf6 {[%clk 0:01:19]} 23. Bd2 {[%clk 0:00:52]}  Nd7 {[%clk 0:01:19]} 24. f4 {[%clk 0:00:51]}  Ba8 {[%clk 0:01:09]} 25. Rce1 {[%clk 0:00:50]}  Rc7 {[%clk 0:01:07]} 26. Kh1 {[%clk 0:00:50]}  Nf6 {[%clk 0:01:05]} 27. Re2 {[%clk 0:00:49]}  Nh5 {[%clk 0:01:04]} 28. Kh2 {[%clk 0:00:48]}  Qc8 {[%clk 0:00:56]} 29. g4 {[%clk 0:00:47]}  Nf6 {[%clk 0:00:56]} 30. Rfe1 {[%clk 0:00:48]}  Qd8 {[%clk 0:00:52]} 31. Bb3 {[%clk 0:00:35]}  Rbc8 {[%clk 0:00:50]} 32. Kg3 {[%clk 0:00:33]}  Nd7 {[%clk 0:00:24]} 33. Nf3 {[%clk 0:00:32]}  Rb8 {[%clk 0:00:20]} 34. g5 {[%clk 0:00:30]}  Rcb7 {[%clk 0:00:17]} 35. Rxe7 {[%clk 0:00:28]}  Ne5 {[%clk 0:00:17]} 36. R7xe5 {[%clk 0:00:26]}  dxe5 {[%clk 0:00:18]} 37. fxe5 {[%clk 0:00:26]}  Rxb4 {[%clk 0:00:17]} 38. Bxb4 {[%clk 0:00:26]}  Rxb4 {[%clk 0:00:18]} 39. h4 {[%clk 0:00:22]}  Qxa5 {[%clk 0:00:17]} 40. Re3 {[%clk 0:00:20]}  Qb6 {[%clk 0:00:17]} 41. h5 {[%clk 0:00:16]}  a5 {[%clk 0:00:17]} 42. Bc2 {[%clk 0:00:16]}  a4 {[%clk 0:00:17]} 43. e6 {[%clk 0:00:16]}  fxe6 {[%clk 0:00:16]} 44. Rxe6 {[%clk 0:00:16]}  Qc7+ {[%clk 0:00:16]} 45. d6 {[%clk 0:00:16]}  Qf7 {[%clk 0:00:14]} 46. Re7 {[%clk 0:00:12]}  Qf8 {[%clk 0:00:07]} 47. hxg6 {[%clk 0:00:12]}  Rb8 {[%clk 0:00:05]} 48. gxh7+ {[%clk 0:00:10]}  Kh8 {[%clk 0:00:06]} 49. Nh4 {[%clk 0:00:10]} 1-0


[Site "https://www.chess.com"]